[Event "Titled Tuesday Blitz August 22 Late 2023"]
[White "Korchmar, Vasiliy"]
[Black "Czerw, Dawid"]
[WhiteFideId "24131750"]
[BlackFideId "1145746"]
[WhiteElo "2665"]
[BlackElo "2460"]
[Result "1-0"]
[Round "3"]
[TimeControl "180+1"]
[Date "2023.08.22"]
[WhiteClock "0:01:22"]
[BlackClock "0:00:00"]
[Board "92"]

1. e4 {[%clk 0:03:00]}  c5 {[%clk 0:02:59]} 2. Nc3 {[%clk 0:03:00]}  Nc6 {[%clk 0:03:00]} 3. Nf3 {[%clk 0:02:59]}  g6 {[%clk 0:03:00]} 4. Bb5 {[%clk 0:02:55]}  Nd4 {[%clk 0:02:59]} 5. Bc4 {[%clk 0:02:54]}  Bg7 {[%clk 0:02:58]} 6. O-O {[%clk 0:02:54]}  e6 {[%clk 0:02:48]} 7. Nxd4 {[%clk 0:02:48]}  cxd4 {[%clk 0:02:48]} 8. Ne2 {[%clk 0:02:47]}  Ne7 {[%clk 0:02:48]} 9. d3 {[%clk 0:02:41]}  O-O {[%clk 0:02:47]} 10. Bg5 {[%clk 0:02:38]}  Re8 {[%clk 0:02:34]} 11. Qd2 {[%clk 0:02:37]}  b6 {[%clk 0:02:32]} 12. f4 {[%clk 0:02:33]}  f5 {[%clk 0:02:21]} 13. e5 {[%clk 0:02:29]}  d6 {[%clk 0:02:14]} 14. Nxd4 {[%clk 0:02:28]}  dxe5 {[%clk 0:02:14]} 15. Nxe6 {[%clk 0:02:27]}  Bxe6 {[%clk 0:02:14]} 16. Bxe6+ {[%clk 0:02:27]}  Kh8 {[%clk 0:02:15]} 17. fxe5 {[%clk 0:02:22]}  Qd4+ {[%clk 0:02:02]} 18. Kh1 {[%clk 0:02:21]}  Qxe5 {[%clk 0:02:02]} 19. Rae1 {[%clk 0:02:20]}  Qxb2 {[%clk 0:01:55]} 20. Bf7 {[%clk 0:02:00]}  Rec8 {[%clk 0:01:04]} 21. Rxe7 {[%clk 0:01:52]}  Rxc2 {[%clk 0:01:02]} 22. Qe1 {[%clk 0:01:52]}  Bc3 {[%clk 0:00:36]} 23. Re8+ {[%clk 0:01:41]}  Kg7 {[%clk 0:00:35]} 24. Qe7 {[%clk 0:01:41]}  Bb4 {[%clk 0:00:28]} 25. Qd7 {[%clk 0:01:28]}  Rxe8 {[%clk 0:00:19]} 26. Bxe8+ {[%clk 0:01:28]}  Kh8 {[%clk 0:00:00]} 27. d4 {[%clk 0:01:22]} 1-0


[Site "https://www.chess.com"]

[Event "Titled Tuesday Blitz August 22 Late 2023"]
[White "Blackburn, Jonathan L B"]
[Black "Godzwon, Iwo"]
[WhiteFideId "1801090"]
[BlackFideId "21802483"]
[WhiteElo "2455"]
[BlackElo "2645"]
[Result "0-1"]
[Round "3"]
[TimeControl "180+1"]
[Date "2023.08.22"]
[WhiteClock "0:00:47"]
[BlackClock "0:01:23"]
[Board "96"]

1. d4 {[%clk 0:03:00]}  Nf6 {[%clk 0:02:54]} 2. c4 {[%clk 0:03:01]}  g6 {[%clk 0:02:54]} 3. Nc3 {[%clk 0:03:01]}  d5 {[%clk 0:02:51]} 4. cxd5 {[%clk 0:03:02]}  Nxd5 {[%clk 0:02:52]} 5. e4 {[%clk 0:03:02]}  Nxc3 {[%clk 0:02:52]} 6. bxc3 {[%clk 0:03:03]}  Bg7 {[%clk 0:02:53]} 7. Bc4 {[%clk 0:03:04]}  c5 {[%clk 0:02:53]} 8. Ne2 {[%clk 0:03:04]}  O-O {[%clk 0:02:53]} 9. O-O {[%clk 0:03:05]}  b6 {[%clk 0:02:52]} 10. Be3 {[%clk 0:03:06]}  Qc7 {[%clk 0:02:47]} 11. Bf4 {[%clk 0:02:59]}  e5 {[%clk 0:02:37]} 12. Bg3 {[%clk 0:02:55]}  Bb7 {[%clk 0:02:33]} 13. d5 {[%clk 0:02:53]}  Nd7 {[%clk 0:02:28]} 14. a4 {[%clk 0:02:46]}  Qd6 {[%clk 0:02:25]} 15. f3 {[%clk 0:02:18]}  f5 {[%clk 0:02:20]} 16. Qb3 {[%clk 0:02:05]}  Nf6 {[%clk 0:02:12]} 17. Bd3 {[%clk 0:02:01]}  Rac8 {[%clk 0:02:00]} 18. c4 {[%clk 0:02:00]}  Bh6 {[%clk 0:01:58]} 19. Bc2 {[%clk 0:01:53]}  Nh5 {[%clk 0:01:46]} 20. Bf2 {[%clk 0:01:41]}  Rb8 {[%clk 0:01:40]} 21. Qb5 {[%clk 0:01:25]}  a6 {[%clk 0:01:33]} 22. Qb3 {[%clk 0:01:23]}  a5 {[%clk 0:01:33]} 23. Rab1 {[%clk 0:01:20]}  Ba6 {[%clk 0:01:32]} 24. Nc3 {[%clk 0:01:14]}  Bd2 {[%clk 0:01:27]} 25. Rbd1 {[%clk 0:01:06]}  Bxc3 {[%clk 0:01:24]} 26. Qxc3 {[%clk 0:01:07]}  Nf4 {[%clk 0:01:24]} 27. exf5 {[%clk 0:00:47]}  Ne2+ {[%clk 0:01:23]} 0-1


[Site "https://www.chess.com"]

[Event "Titled Tuesday Blitz August 22 Late 2023"]
[White "Jakubowski, Krzysztof"]
[Black "Rangel, Daniel"]
[WhiteFideId "1112848"]
[BlackFideId "2124475"]
[WhiteElo "2632"]
[BlackElo "2447"]
[Result "0-1"]
[Round "3"]
[TimeControl "180+1"]
[Date "2023.08.22"]
[WhiteClock "0:00:00"]
[BlackClock "0:00:09"]
[Board "99"]

1. e4 {[%clk 0:03:00]}  c5 {[%clk 0:02:44]} 2. Nf3 {[%clk 0:02:59]}  g6 {[%clk 0:02:34]} 3. d4 {[%clk 0:02:51]}  cxd4 {[%clk 0:02:23]} 4. Nxd4 {[%clk 0:02:51]}  Bg7 {[%clk 0:02:23]} 5. c4 {[%clk 0:02:50]}  Nc6 {[%clk 0:02:23]} 6. Be3 {[%clk 0:02:48]}  Nf6 {[%clk 0:02:23]} 7. Nc3 {[%clk 0:02:47]}  O-O {[%clk 0:02:23]} 8. Be2 {[%clk 0:02:46]}  Nxd4 {[%clk 0:02:22]} 9. Bxd4 {[%clk 0:02:45]}  d6 {[%clk 0:02:23]} 10. O-O {[%clk 0:02:44]}  Bd7 {[%clk 0:02:24]} 11. Qd3 {[%clk 0:02:39]}  Bc6 {[%clk 0:02:24]} 12. Kh1 {[%clk 0:02:34]}  Nd7 {[%clk 0:02:24]} 13. Bxg7 {[%clk 0:02:31]}  Kxg7 {[%clk 0:02:25]} 14. f4 {[%clk 0:02:30]}  a5 {[%clk 0:02:22]} 15. Nd5 {[%clk 0:02:25]}  Nc5 {[%clk 0:02:19]} 16. Qe3 {[%clk 0:02:12]}  Bxd5 {[%clk 0:02:10]} 17. exd5 {[%clk 0:02:11]}  Qb6 {[%clk 0:02:05]} 18. b3 {[%clk 0:01:49]}  a4 {[%clk 0:01:52]} 19. b4 {[%clk 0:01:41]}  Qxb4 {[%clk 0:01:52]} 20. Rab1 {[%clk 0:01:39]}  Qa5 {[%clk 0:01:50]} 21. f5 {[%clk 0:01:36]}  Qc7 {[%clk 0:01:43]} 22. Rf3 {[%clk 0:01:29]}  f6 {[%clk 0:01:32]} 23. fxg6 {[%clk 0:01:25]}  hxg6 {[%clk 0:01:31]} 24. Rg3 {[%clk 0:01:23]}  Nd7 {[%clk 0:01:26]} 25. Bd3 {[%clk 0:01:20]}  Ne5 {[%clk 0:01:25]} 26. Rf1 {[%clk 0:00:52]}  Rh8 {[%clk 0:01:21]} 27. Rf4 {[%clk 0:00:40]}  Rh6 {[%clk 0:01:19]} 28. h3 {[%clk 0:00:38]}  Rah8 {[%clk 0:01:06]} 29. Qe4 {[%clk 0:00:35]}  Qb6 {[%clk 0:00:35]} 30. Kh2 {[%clk 0:00:34]}  Qb2 {[%clk 0:00:35]} 31. Rfg4 {[%clk 0:00:33]}  f5 {[%clk 0:00:22]} 32. Qxf5 {[%clk 0:00:31]}  Nxg4+ {[%clk 0:00:22]} 33. Qxg4 {[%clk 0:00:30]}  Qe5 {[%clk 0:00:21]} 34. Bxg6 {[%clk 0:00:20]}  Kf8 {[%clk 0:00:19]} 35. Bd3 {[%clk 0:00:15]}  Rh4 {[%clk 0:00:15]} 36. Qg6 {[%clk 0:00:06]}  R4h6 {[%clk 0:00:11]} 37. Qg4 {[%clk 0:00:05]}  Rh4 {[%clk 0:00:10]} 38. Qf3+ {[%clk 0:00:04]}  Ke8 {[%clk 0:00:10]} 39. Kg1 {[%clk 0:00:02]}  Qd4+ {[%clk 0:00:09]} 40. Kh2 {[%clk 0:00:01]}  Qe5 {[%clk 0:00:08]} 41. Kg1 {[%clk 0:00:00]}  Rf8 {[%clk 0:00:09]} 0-1


[Site "https://www.chess.com"]

[Event "Titled Tuesday Blitz August 22 Late 2023"]
[White "Onthequiet"]
[Black "OPQRC"]
[WhiteElo "2443"]
[BlackElo "2631"]
[Result "0-1"]
[Round "3"]
[TimeControl "180+1"]
[Date "2023.08.22"]
[WhiteClock "0:00:02"]
[BlackClock "0:00:07"]
[Board "100"]

1. d4 {[%clk 0:02:50]}  c6 {[%clk 0:02:54]} 2. Nf3 {[%clk 0:02:48]}  g6 {[%clk 0:02:52]} 3. Bg5 {[%clk 0:02:46]}  Bg7 {[%clk 0:02:52]} 4. c3 {[%clk 0:02:45]}  d6 {[%clk 0:02:50]} 5. Nbd2 {[%clk 0:02:42]}  h6 {[%clk 0:02:49]} 6. Bh4 {[%clk 0:02:40]}  Nd7 {[%clk 0:02:43]} 7. h3 {[%clk 0:02:37]}  Qc7 {[%clk 0:02:42]} 8. Bg3 {[%clk 0:02:34]}  Ngf6 {[%clk 0:02:41]} 9. e4 {[%clk 0:02:34]}  O-O {[%clk 0:02:38]} 10. Be2 {[%clk 0:02:32]}  e5 {[%clk 0:02:33]} 11. dxe5 {[%clk 0:02:31]}  Nxe5 {[%clk 0:02:32]} 12. Nxe5 {[%clk 0:02:29]}  dxe5 {[%clk 0:02:32]} 13. O-O {[%clk 0:02:29]}  Be6 {[%clk 0:02:22]} 14. Re1 {[%clk 0:02:28]}  Rad8 {[%clk 0:02:21]} 15. Qc2 {[%clk 0:02:27]}  Rfe8 {[%clk 0:02:13]} 16. b3 {[%clk 0:02:20]}  Bc8 {[%clk 0:02:05]} 17. Rad1 {[%clk 0:02:19]}  b5 {[%clk 0:02:01]} 18. Nf1 {[%clk 0:02:17]}  Bf8 {[%clk 0:01:34]} 19. Ne3 {[%clk 0:02:05]}  Bc5 {[%clk 0:01:31]} 20. Bf3 {[%clk 0:02:01]}  a5 {[%clk 0:01:25]} 21. Qc1 {[%clk 0:01:53]}  Kg7 {[%clk 0:01:21]} 22. Bh4 {[%clk 0:01:49]}  g5 {[%clk 0:01:18]} 23. Bg3 {[%clk 0:01:47]}  Ng8 {[%clk 0:00:45]} 24. Bg4 {[%clk 0:01:45]}  Bxg4 {[%clk 0:00:36]} 25. Nxg4 {[%clk 0:01:37]}  f6 {[%clk 0:00:28]} 26. Ne3 {[%clk 0:01:19]}  Ne7 {[%clk 0:00:27]} 27. Qc2 {[%clk 0:01:11]}  Rxd1 {[%clk 0:00:25]} 28. Nxd1 {[%clk 0:01:09]}  Ng6 {[%clk 0:00:23]} 29. Ne3 {[%clk 0:01:02]}  Bxe3 {[%clk 0:00:20]} 30. fxe3 {[%clk 0:01:01]}  Rd8 {[%clk 0:00:20]} 31. Rd1 {[%clk 0:00:56]}  Rd6 {[%clk 0:00:20]} 32. Be1 {[%clk 0:00:53]}  Qd7 {[%clk 0:00:20]} 33. Rxd6 {[%clk 0:00:54]}  Qxd6 {[%clk 0:00:21]} 34. c4 {[%clk 0:00:53]}  b4 {[%clk 0:00:19]} 35. c5 {[%clk 0:00:51]}  Qd7 {[%clk 0:00:17]} 36. a3 {[%clk 0:00:50]}  bxa3 {[%clk 0:00:17]} 37. Bxa5 {[%clk 0:00:48]}  h5 {[%clk 0:00:17]} 38. Bc3 {[%clk 0:00:44]}  g4 {[%clk 0:00:17]} 39. hxg4 {[%clk 0:00:40]}  Qxg4 {[%clk 0:00:16]} 40. Qd2 {[%clk 0:00:40]}  Nh4 {[%clk 0:00:15]} 41. Qf2 {[%clk 0:00:36]}  Kg6 {[%clk 0:00:12]} 42. Be1 {[%clk 0:00:30]}  f5 {[%clk 0:00:09]} 43. exf5+ {[%clk 0:00:29]}  Nxf5 {[%clk 0:00:08]} 44. Bc3 {[%clk 0:00:28]}  Qd1+ {[%clk 0:00:08]} 45. Kh2 {[%clk 0:00:26]}  Qd5 {[%clk 0:00:06]} 46. Qe2 {[%clk 0:00:23]}  Qe4 {[%clk 0:00:06]} 47. Ba1 {[%clk 0:00:20]}  Nxe3 {[%clk 0:00:06]} 48. Qf3 {[%clk 0:00:19]}  Qxf3 {[%clk 0:00:06]} 49. gxf3 {[%clk 0:00:20]}  Nc2 {[%clk 0:00:06]} 50. Bxe5 {[%clk 0:00:16]}  a2 {[%clk 0:00:06]} 51. Kh3 {[%clk 0:00:13]}  Kf5 {[%clk 0:00:06]} 52. Bg7 {[%clk 0:00:12]}  a1=Q {[%clk 0:00:06]} 53. Bxa1 {[%clk 0:00:11]}  Nxa1 {[%clk 0:00:07]} 54. b4 {[%clk 0:00:11]}  Nb3 {[%clk 0:00:06]} 55. b5 {[%clk 0:00:10]}  cxb5 {[%clk 0:00:06]} 56. c6 {[%clk 0:00:10]}  Ke6 {[%clk 0:00:06]} 57. c7 {[%clk 0:00:10]}  Kd7 {[%clk 0:00:07]} 58. f4 {[%clk 0:00:10]}  Nd4 {[%clk 0:00:07]} 59. Kh4 {[%clk 0:00:09]}  b4 {[%clk 0:00:07]} 60. Kxh5 {[%clk 0:00:09]}  b3 {[%clk 0:00:08]} 61. Kg6 {[%clk 0:00:08]}  b2 {[%clk 0:00:08]} 62. f5 {[%clk 0:00:08]}  b1=Q {[%clk 0:00:07]} 63. Kg7 {[%clk 0:00:02]}  Nxf5+ {[%clk 0:00:07]} 0-1


[Site "https://www.chess.com"]

[Event "Titled Tuesday Blitz August 22 Late 2023"]
[White "Kim, Sergey"]
[Black "Tsyhanchuk, Stanislav"]
[WhiteFideId "13700570"]
[BlackFideId "13505130"]
[WhiteElo "2617"]
[BlackElo "2443"]
[Result "0-1"]
[Round "3"]
[TimeControl "180+1"]
[Date "2023.08.22"]
[WhiteClock "0:00:42"]
[BlackClock "0:00:06"]
[Board "102"]

1. d4 {[%clk 0:03:00]}  Nf6 {[%clk 0:02:58]} 2. c4 {[%clk 0:03:00]}  e6 {[%clk 0:02:57]} 3. Nc3 {[%clk 0:02:59]}  Bb4 {[%clk 0:02:57]} 4. Qc2 {[%clk 0:02:59]}  O-O {[%clk 0:02:56]} 5. a3 {[%clk 0:02:59]}  Bxc3+ {[%clk 0:02:55]} 6. Qxc3 {[%clk 0:03:00]}  b6 {[%clk 0:02:54]} 7. Nf3 {[%clk 0:03:00]}  Bb7 {[%clk 0:02:54]} 8. g3 {[%clk 0:03:00]}  d6 {[%clk 0:02:50]} 9. Bg2 {[%clk 0:03:00]}  Nbd7 {[%clk 0:02:50]} 10. O-O {[%clk 0:03:00]}  c5 {[%clk 0:02:50]} 11. dxc5 {[%clk 0:02:59]}  Nxc5 {[%clk 0:02:48]} 12. Rd1 {[%clk 0:02:57]}  Nce4 {[%clk 0:02:47]} 13. Qc2 {[%clk 0:02:56]}  Qc7 {[%clk 0:02:46]} 14. b3 {[%clk 0:02:53]}  d5 {[%clk 0:02:43]} 15. Bf4 {[%clk 0:02:51]}  Qc8 {[%clk 0:02:28]} 16. Rac1 {[%clk 0:02:47]}  dxc4 {[%clk 0:02:28]} 17. Qxc4 {[%clk 0:02:44]}  Qxc4 {[%clk 0:02:20]} 18. Rxc4 {[%clk 0:02:44]}  Ba6 {[%clk 0:02:15]} 19. Rc2 {[%clk 0:02:40]}  Rad8 {[%clk 0:02:03]} 20. Rdc1 {[%clk 0:02:26]}  h6 {[%clk 0:02:02]} 21. h3 {[%clk 0:02:22]}  g5 {[%clk 0:01:52]} 22. Be5 {[%clk 0:02:18]}  Rd7 {[%clk 0:01:35]} 23. Bxf6 {[%clk 0:02:14]}  Nxf6 {[%clk 0:01:34]} 24. Ne5 {[%clk 0:02:15]}  Re7 {[%clk 0:00:58]} 25. Nc6 {[%clk 0:02:14]}  Rd7 {[%clk 0:00:49]} 26. Nb4 {[%clk 0:02:07]}  Bb7 {[%clk 0:00:43]} 27. Rc7 {[%clk 0:02:05]}  Bxg2 {[%clk 0:00:35]} 28. Kxg2 {[%clk 0:02:05]}  Rfd8 {[%clk 0:00:34]} 29. Nd3 {[%clk 0:02:01]}  Nd5 {[%clk 0:00:29]} 30. Rc8 {[%clk 0:01:59]}  f6 {[%clk 0:00:27]} 31. b4 {[%clk 0:01:49]}  Kf7 {[%clk 0:00:26]} 32. b5 {[%clk 0:01:47]}  Rxc8 {[%clk 0:00:17]} 33. Rxc8 {[%clk 0:01:46]}  Ne7 {[%clk 0:00:17]} 34. Ra8 {[%clk 0:01:43]}  e5 {[%clk 0:00:17]} 35. Nb4 {[%clk 0:01:43]}  Ke6 {[%clk 0:00:17]} 36. e4 {[%clk 0:01:40]}  Rc7 {[%clk 0:00:17]} 37. Re8 {[%clk 0:01:36]}  Kf7 {[%clk 0:00:14]} 38. Rh8 {[%clk 0:01:33]}  Kg7 {[%clk 0:00:14]} 39. Ra8 {[%clk 0:01:33]}  Kf7 {[%clk 0:00:14]} 40. Kf3 {[%clk 0:01:28]}  h5 {[%clk 0:00:14]} 41. Kg2 {[%clk 0:01:27]}  Kg7 {[%clk 0:00:11]} 42. Kf1 {[%clk 0:01:15]}  Kf7 {[%clk 0:00:10]} 43. Ke2 {[%clk 0:01:13]}  Nc8 {[%clk 0:00:10]} 44. Nc6 {[%clk 0:01:11]}  Ke6 {[%clk 0:00:09]} 45. a4 {[%clk 0:01:09]}  Kd6 {[%clk 0:00:09]} 46. Kd3 {[%clk 0:01:08]}  Kc5 {[%clk 0:00:09]} 47. Kc3 {[%clk 0:01:08]}  Kd6 {[%clk 0:00:08]} 48. Kc4 {[%clk 0:01:08]}  Ke6 {[%clk 0:00:07]} 49. Kb4 {[%clk 0:01:05]}  f5 {[%clk 0:00:07]} 50. f3 {[%clk 0:01:03]}  g4 {[%clk 0:00:06]} 51. hxg4 {[%clk 0:01:03]}  hxg4 {[%clk 0:00:04]} 52. exf5+ {[%clk 0:01:01]}  Kxf5 {[%clk 0:00:05]} 53. fxg4+ {[%clk 0:01:01]}  Kxg4 {[%clk 0:00:06]} 54. Nxe5+ {[%clk 0:00:59]}  Kxg3 {[%clk 0:00:06]} 55. Nc6 {[%clk 0:00:59]}  Kf4 {[%clk 0:00:06]} 56. a5 {[%clk 0:01:00]}  bxa5+ {[%clk 0:00:05]} 57. Kxa5 {[%clk 0:00:59]}  Ke4 {[%clk 0:00:06]} 58. Ka6 {[%clk 0:00:56]}  Kd5 {[%clk 0:00:06]} 59. Nxa7 {[%clk 0:00:55]}  Nd6 {[%clk 0:00:05]} 60. b6 {[%clk 0:00:53]}  Rc1 {[%clk 0:00:06]} 61. Ka5 {[%clk 0:00:46]}  Ra1+ {[%clk 0:00:04]} 62. Kb4 {[%clk 0:00:46]}  Rb1+ {[%clk 0:00:04]} 63. Ka5 {[%clk 0:00:46]}  Ra1+ {[%clk 0:00:05]} 64. Kb4 {[%clk 0:00:45]}  Rb1+ {[%clk 0:00:05]} 65. Ka5 {[%clk 0:00:42]}  Nc4+ {[%clk 0:00:06]} 66. Ka6 {[%clk 0:00:42]}  Rxb6# {[%clk 0:00:06]} 0-1


[Site "https://www.chess.com"]

[Event "Titled Tuesday Blitz August 22 Late 2023"]
[White "Saif, Malek"]
[Black "Baches Garcia, Guillermo"]
[WhiteFideId "8104220"]
[BlackFideId "2209764"]
[WhiteElo "2610"]
[BlackElo "2434"]
[Result "1-0"]
[Round "3"]
[TimeControl "180+1"]
[Date "2023.08.22"]
[WhiteClock "0:00:13"]
[BlackClock "0:00:00"]
[Board "105"]

1. e4 {[%clk 0:03:00]}  c5 {[%clk 0:03:00]} 2. Nf3 {[%clk 0:03:01]}  d6 {[%clk 0:03:00]} 3. d4 {[%clk 0:03:01]}  cxd4 {[%clk 0:03:01]} 4. Nxd4 {[%clk 0:03:02]}  Nf6 {[%clk 0:03:01]} 5. Nc3 {[%clk 0:03:03]}  Nc6 {[%clk 0:03:01]} 6. Be2 {[%clk 0:03:03]}  e5 {[%clk 0:03:00]} 7. Nb3 {[%clk 0:03:03]}  Be7 {[%clk 0:03:00]} 8. O-O {[%clk 0:03:04]}  O-O {[%clk 0:03:00]} 9. f4 {[%clk 0:03:04]}  a5 {[%clk 0:03:00]} 10. Be3 {[%clk 0:03:03]}  a4 {[%clk 0:02:57]} 11. Nd2 {[%clk 0:03:03]}  a3 {[%clk 0:02:55]} 12. b3 {[%clk 0:03:03]}  exf4 {[%clk 0:02:39]} 13. Bxf4 {[%clk 0:03:03]}  Ne5 {[%clk 0:02:37]} 14. Qe1 {[%clk 0:02:48]}  Be6 {[%clk 0:02:25]} 15. Rd1 {[%clk 0:02:46]}  Qc7 {[%clk 0:02:14]} 16. Nf3 {[%clk 0:02:44]}  Rac8 {[%clk 0:02:10]} 17. Nd5 {[%clk 0:02:09]}  Bxd5 {[%clk 0:01:53]} 18. exd5 {[%clk 0:02:10]}  Qc5+ {[%clk 0:01:51]} 19. Kh1 {[%clk 0:02:04]}  Nxd5 {[%clk 0:01:46]} 20. Bxe5 {[%clk 0:01:54]}  dxe5 {[%clk 0:01:44]} 21. Nxe5 {[%clk 0:01:54]}  Ne3 {[%clk 0:01:28]} 22. Nd7 {[%clk 0:01:51]}  Qg5 {[%clk 0:01:08]} 23. Qf2 {[%clk 0:01:07]}  Nxd1 {[%clk 0:00:45]} 24. Bxd1 {[%clk 0:01:08]}  Rfd8 {[%clk 0:00:40]} 25. Qxf7+ {[%clk 0:01:08]}  Kh8 {[%clk 0:00:37]} 26. Nb6 {[%clk 0:01:07]}  Rc6 {[%clk 0:00:22]} 27. Nc4 {[%clk 0:00:55]}  Rf6 {[%clk 0:00:21]} 28. Rxf6 {[%clk 0:00:25]}  Bxf6 {[%clk 0:00:16]} 29. Qh5 {[%clk 0:00:24]}  Qxh5 {[%clk 0:00:15]} 30. Bxh5 {[%clk 0:00:24]}  Bb2 {[%clk 0:00:15]} 31. g3 {[%clk 0:00:22]}  b5 {[%clk 0:00:14]} 32. Ne3 {[%clk 0:00:17]}  g6 {[%clk 0:00:14]} 33. Bg4 {[%clk 0:00:16]}  Re8 {[%clk 0:00:13]} 34. Nd5 {[%clk 0:00:16]}  Re1+ {[%clk 0:00:11]} 35. Kg2 {[%clk 0:00:16]}  Ra1 {[%clk 0:00:10]} 36. Nb4 {[%clk 0:00:17]}  Bc3 {[%clk 0:00:10]} 37. Nd5 {[%clk 0:00:17]}  Rxa2 {[%clk 0:00:10]} 38. Bd1 {[%clk 0:00:14]}  Bg7 {[%clk 0:00:09]} 39. Kf3 {[%clk 0:00:12]}  Ra1 {[%clk 0:00:10]} 40. Ke2 {[%clk 0:00:12]}  a2 {[%clk 0:00:09]} 41. Nb4 {[%clk 0:00:12]}  Rxd1 {[%clk 0:00:09]} 42. Nxa2 {[%clk 0:00:12]}  Rh1 {[%clk 0:00:08]} 43. Nb4 {[%clk 0:00:12]}  Rxh2+ {[%clk 0:00:07]} 44. Kf3 {[%clk 0:00:12]}  h5 {[%clk 0:00:07]} 45. c4 {[%clk 0:00:13]}  Bf8 {[%clk 0:00:07]} 46. Nd5 {[%clk 0:00:12]}  bxc4 {[%clk 0:00:07]} 47. bxc4 {[%clk 0:00:13]}  Rc2 {[%clk 0:00:07]} 48. Ne3 {[%clk 0:00:13]}  Ra2 {[%clk 0:00:05]} 49. Ke4 {[%clk 0:00:14]}  Bc5 {[%clk 0:00:02]} 50. Nd5 {[%clk 0:00:14]}  Ra3 {[%clk 0:00:01]} 51. Nf6 {[%clk 0:00:14]}  Rxg3 {[%clk 0:00:01]} 52. Nd7 {[%clk 0:00:15]}  Bf2 {[%clk 0:00:01]} 53. Kf4 {[%clk 0:00:15]}  h4 {[%clk 0:00:01]} 54. c5 {[%clk 0:00:15]}  h3 {[%clk 0:00:02]} 55. c6 {[%clk 0:00:16]}  h2 {[%clk 0:00:02]} 56. c7 {[%clk 0:00:14]}  h1=Q {[%clk 0:00:01]} 57. c8=Q+ {[%clk 0:00:14]}  Kh7 {[%clk 0:00:00]} 58. Nf6+ {[%clk 0:00:13]} 1-0


[Site "https://www.chess.com"]

[Event "Titled Tuesday Blitz August 22 Late 2023"]
[White "Gunduz, Umut Erdem"]
[Black "Dwilewicz, Katarzyna"]
[WhiteFideId "6381383"]
[BlackFideId "1148486"]
[WhiteElo "2610"]
[BlackElo "2428"]
[Result "1-0"]
[Round "3"]
[TimeControl "180+1"]
[Date "2023.08.22"]
[WhiteClock "0:00:17"]
[BlackClock "0:00:00"]
[Board "106"]

1. e4 {[%clk 0:03:00]}  c5 {[%clk 0:02:58]} 2. Nf3 {[%clk 0:02:58]}  d6 {[%clk 0:02:58]} 3. d4 {[%clk 0:02:59]}  cxd4 {[%clk 0:02:59]} 4. Nxd4 {[%clk 0:03:00]}  Nf6 {[%clk 0:02:59]} 5. Nc3 {[%clk 0:02:52]}  a6 {[%clk 0:03:00]} 6. f3 {[%clk 0:02:50]}  e5 {[%clk 0:02:58]} 7. Nb3 {[%clk 0:02:50]}  Be7 {[%clk 0:02:56]} 8. Be3 {[%clk 0:02:50]}  Be6 {[%clk 0:02:56]} 9. Qd2 {[%clk 0:02:45]}  Nbd7 {[%clk 0:02:57]} 10. O-O-O {[%clk 0:02:44]}  h5 {[%clk 0:02:56]} 11. Kb1 {[%clk 0:02:42]}  Rc8 {[%clk 0:02:55]} 12. Nd5 {[%clk 0:02:41]}  Nxd5 {[%clk 0:02:54]} 13. exd5 {[%clk 0:02:42]}  Bf5 {[%clk 0:02:54]} 14. Bd3 {[%clk 0:02:42]}  Bxd3 {[%clk 0:02:51]} 15. Qxd3 {[%clk 0:02:43]}  g6 {[%clk 0:02:46]} 16. Rhe1 {[%clk 0:02:31]}  Kf8 {[%clk 0:02:46]} 17. f4 {[%clk 0:02:27]}  Kg7 {[%clk 0:02:44]} 18. f5 {[%clk 0:02:19]}  Bg5 {[%clk 0:02:23]} 19. Bg1 {[%clk 0:02:12]}  Qf6 {[%clk 0:02:12]} 20. fxg6 {[%clk 0:02:12]}  fxg6 {[%clk 0:02:08]} 21. Rf1 {[%clk 0:02:12]}  Qe7 {[%clk 0:02:07]} 22. Na5 {[%clk 0:02:11]}  Nc5 {[%clk 0:02:02]} 23. Bxc5 {[%clk 0:02:08]}  Rxc5 {[%clk 0:02:01]} 24. b4 {[%clk 0:01:53]}  Rc7 {[%clk 0:01:55]} 25. c4 {[%clk 0:01:52]}  Re8 {[%clk 0:01:48]} 26. Qe4 {[%clk 0:01:49]}  Qd7 {[%clk 0:01:41]} 27. c5 {[%clk 0:01:25]}  dxc5 {[%clk 0:01:20]} 28. d6 {[%clk 0:01:24]}  Rcc8 {[%clk 0:01:19]} 29. Qxb7 {[%clk 0:01:21]}  Red8 {[%clk 0:01:11]} 30. Qd5 {[%clk 0:01:10]}  Bf6 {[%clk 0:01:03]} 31. Nb7 {[%clk 0:01:07]}  Rb8 {[%clk 0:00:52]} 32. Nxc5 {[%clk 0:01:01]}  Rxb4+ {[%clk 0:00:50]} 33. Ka1 {[%clk 0:01:01]}  Rb5 {[%clk 0:00:08]} 34. Nxd7 {[%clk 0:00:23]}  Rxd5 {[%clk 0:00:08]} 35. Rxd5 {[%clk 0:00:24]}  Rxd7 {[%clk 0:00:08]} 36. Rc1 {[%clk 0:00:20]}  e4+ {[%clk 0:00:07]} 37. Kb1 {[%clk 0:00:20]}  Rb7+ {[%clk 0:00:04]} 38. Kc2 {[%clk 0:00:20]}  Kf7 {[%clk 0:00:05]} 39. Rb1 {[%clk 0:00:18]}  Rxb1 {[%clk 0:00:03]} 40. Kxb1 {[%clk 0:00:19]}  Ke6 {[%clk 0:00:03]} 41. Rd1 {[%clk 0:00:18]}  e3 {[%clk 0:00:02]} 42. d7 {[%clk 0:00:18]}  Bd8 {[%clk 0:00:02]} 43. Rd3 {[%clk 0:00:17]}  Bb6 {[%clk 0:00:00]} 44. Rxe3+ {[%clk 0:00:17]} 1-0


[Site "https://www.chess.com"]

[Event "Titled Tuesday Blitz August 22 Late 2023"]
[White "Jonkman, Harmen"]
[Black "Papayan, Oleg"]
[WhiteFideId "1002708"]
[BlackFideId "4193911"]
[WhiteElo "2427"]
[BlackElo "2609"]
[Result "0-1"]
[Round "3"]
[TimeControl "180+1"]
[Date "2023.08.22"]
[WhiteClock "0:00:00"]
[BlackClock "0:01:42"]
[Board "107"]

1. e4 {[%clk 0:02:49]}  c5 {[%clk 0:02:58]} 2. c3 {[%clk 0:02:46]}  Nf6 {[%clk 0:02:56]} 3. e5 {[%clk 0:02:46]}  Nd5 {[%clk 0:02:57]} 4. Nf3 {[%clk 0:02:47]}  d6 {[%clk 0:02:56]} 5. Bc4 {[%clk 0:02:46]}  Nb6 {[%clk 0:02:56]} 6. Bb3 {[%clk 0:02:46]}  c4 {[%clk 0:02:56]} 7. Bc2 {[%clk 0:02:46]}  Nc6 {[%clk 0:02:56]} 8. exd6 {[%clk 0:02:45]}  Qxd6 {[%clk 0:02:57]} 9. b3 {[%clk 0:02:41]}  cxb3 {[%clk 0:02:55]} 10. axb3 {[%clk 0:02:41]}  Bg4 {[%clk 0:02:54]} 11. h3 {[%clk 0:02:35]}  Qe6+ {[%clk 0:02:53]} 12. Kf1 {[%clk 0:02:27]}  Bh5 {[%clk 0:02:50]} 13. d4 {[%clk 0:02:25]}  Qd5 {[%clk 0:02:44]} 14. Nbd2 {[%clk 0:02:19]}  e6 {[%clk 0:02:42]} 15. Be4 {[%clk 0:02:01]}  Qd7 {[%clk 0:02:42]} 16. Nc4 {[%clk 0:01:52]}  Nd5 {[%clk 0:02:36]} 17. Bxd5 {[%clk 0:01:50]}  Qxd5 {[%clk 0:02:36]} 18. g4 {[%clk 0:01:43]}  Bg6 {[%clk 0:02:35]} 19. Qe2 {[%clk 0:01:33]}  Rd8 {[%clk 0:02:29]} 20. Ba3 {[%clk 0:00:42]}  Bxa3 {[%clk 0:02:29]} 21. Rxa3 {[%clk 0:00:42]}  O-O {[%clk 0:02:25]} 22. Rg1 {[%clk 0:00:33]}  b5 {[%clk 0:02:18]} 23. Nce5 {[%clk 0:00:19]}  b4 {[%clk 0:02:17]} 24. cxb4 {[%clk 0:00:00]}  Be4 {[%clk 0:01:42]} 0-1


[Site "https://www.chess.com"]